Workbook

Sheet メニュー
B2: 取り纏め役用メニュー

Sheet 基本情報
A1: 基本情報シート
A2: 項番 | C2: 項目 | E2: 記入欄 | F2: エラー内容
A3: 1 | B3: (1) | C3: 年 | E3: 2018
B4: (2) | C4: 月 | E4: 6
B5: (3) | C5: 区分 | E5: 2
B6: (4) | C6: 法人番号 | E6: 1111111111111
B7: (5) | C7: 製造販売業者 業者コード | E7: 123456789
A8: 2 | C8: 製造販売業者 名称 | E8: =IFERROR(VLOOKUP($E$6,法人リスト,2,FALSE),"") -> 厚生労働コスメ株式会社
A9: 3 | C9: 製造販売業者 所在地 | E9: =IFERROR(VLOOKUP($E$6,法人リスト,3,FALSE),"") -> 東京都千代田区霞が関１－２－２
A10: 4 | C10: 報告義務者職名・氏名 | E10: 代表取締役社長 厚労 花子
A11: 5 | C11: 記入担当者氏名・連絡先 | D11: 氏名 | E11: 厚労 太郎
D12: E-mail | E12: aaa@mhlw.co.jp
D13: 電話 | E13: 03-5253-1111（内2532）

Sheet 医薬部外品
B1: 0 | AA1: =IFERROR(VLOOKUP(V1,医薬部外品リスト,2, FALSE),"") ->  | BQ1: =BA1*BJ1/1000 -> 0 | CJ1: =BA1*CC1/1000 -> 0 | CS1: =DI1+BJ1-CC1 -> 0 | CZ1: =BA1*CS1/1000 -> 0 | DT1: jpn
F5: 第三号様式〔第8条〕 | AG5: 薬事工業生産動態統計調査 | CX5: 枚目／全 枚
CL6: 提 出 月 日
H7: ㊙ | M7: 統計法に基づく基幹統計調査 | AJ7: 第 Ⅲ 票 医薬部外品生産 (輸入) 月報 | BW7: 部 | CL7: 翌 月 １5 日
BT9: 厚生労働省医政局
CC10: 4 報告義務者職名・氏名 | CI10: =基本情報!E10 -> 代表取締役社長 厚労 花子
C12: 1符 号 | D12: （1）年 | H12: （2）月 | M12: （3）区分 | P12: （4） 法人番号 | AC12: （5）製造販売業者 業者コード | AL12: 2 製造販売業者 名称 | AX12: 3 製造販売業者 所在地 | CC12: 5 記入担当者氏名・連絡先 | CI12: 氏名: | CL12: =基本情報!E11 -> 厚労 太郎
D13: =基本情報!E3 -> 2018 | H13: =基本情報!E4 -> 6 | M13: =基本情報!E5 -> 2 | P13: =基本情報!E6 -> 1111111111111 | AC13: =基本情報!E7 -> 123456789 | AL13: =基本情報!E8 -> 厚生労働コスメ株式会社 | AX13: =基本情報!E9 -> 東京都千代田区霞が関１－２－２ | CI13: E-mail: | CM13: =基本情報!E12 -> aaa@mhlw.co.jp
CI14: 電話: | CL14: =基本情報!E13 -> 03-5253-1111（内2532）
C15: 6 製造業者情報 | V15: 7 製品情報 | AV15: 8 記入単位 | AX15: 9 税込/税抜 | BA15: 10 販売単価 （円） | BJ15: 11 生産（輸入） | BZ15: 12 出荷 | CS15: 13 月末在庫 | DI15: 前月在庫 | DJ15: エラー内容 | DK15: 担当者
C16: 製造 区分 | E16: 製造業許可・登録・認定番号 | O16: 委託額 | V16: 分類番号 | AA16: 分類名/特掲名 | AN16: 販売名 | BJ16: 数量 | BQ16: 金額 （千円） | BZ16: 出荷先国・地域 コード | CC16: 数量 | CJ16: 金額 （千円） | CS16: 数量 | CZ16: 金額 （千円） | DI16: 数量
C18: (1) | E18: (2) | O18: (3) | V18: (1) | AA18: (2) | AN18: (3) | BJ18: (1) | BQ18: (2) | BZ18: (1) | CC18: (2) | CJ18: (3) | CS18: (1) | CZ18: (2) | DI18: (1)
B19: 1 | C19: 1 | E19: DG10300024 | V19: 011 | AA19: =IFERROR(VLOOKUP(V19,医薬部外品リスト,2, FALSE),"") -> 口中清涼剤／アセン薬製剤（丸剤のみ） | AN19: 清涼剤 | AV19: 一 | AW19: kg | AX19: 1 | BA19: 8476 | BJ19: 100 | BQ19: =BA19*BJ19/1000 -> 847.6 | BZ19: jpn | CC19: 21 | CJ19: =BA19*CC19/1000 -> 177.996 | CS19: =DI19+BJ19-CC19 -> 79 | CZ19: =BA19*CS19/1000 -> 669.604 | DT19: jpn
B20: 2 | C20: 2 | E20: DG10300024 | V20: 036 | AA20: 薬用化粧品／薬用石けん | AN20: 石けんA | AV20: 一 | AW20: kg | AX20: 1 | BA20: 12709 | BJ20: 600 | BQ20: =BA20*BJ20/1000 -> 7625.4 | BZ20: jpn | CC20: 550 | CJ20: =BA20*CC20/1000 -> 6989.95 | CS20: 50 | CZ20: =BA20*CS20/1000 -> 635.45 | DT20: jpn
B21: 3 | C21: 2 | E21: DG10300024 | V21: 036 | AA21: 薬用化粧品／薬用石けん | AN21: 石けんB | AV21: 一 | AW21: kg | AX21: 1 | BA21: 23333 | BJ21: 200 | BQ21: =BA21*BJ21/1000 -> 4666.6 | BZ21: jpn | CC21: 120 | CJ21: =BA21*CC21/1000 -> 2799.96 | CS21: 80 | CZ21: =BA21*CS21/1000 -> 1866.64 | DT21: jpn
B22: 4 | C22: 2 | E22: 12DZ123456 | O22: 100000 | V22: 021 | AA22: 薬用歯みがき剤／薬用練歯みがき | AN22: 歯磨きA、歯磨きB、歯磨きC | AV22: 一 | AW22: kg | AX22: 1 | BJ22: 30 | BQ22: 300 | BZ22: 300 | CC22: 20 | CJ22: 200 | CS22: =DI22+BJ22-CC22 -> 10 | CZ22: 100 | DT22: jpn
B23: 5 | C23: 2 | E23: 12DZ123456 | V23: 032 | AA23: 薬用化粧品／薬用化粧水 | AN23: 化粧水A、化粧水B | AV23: 一 | AW23: ℓ | AX23: 1 | BJ23: 100 | BQ23: 1000 | BZ23: vut | CC23: 70 | CJ23: 700 | CS23: =DI23+BJ23-CC23 -> 30 | CZ23: 300 | DT23: jpn
B24: 6 | C24: 1 | E24: 13DZ111111 | V24: 032 | AA24: 薬用化粧品／薬用化粧水 | AN24: 化粧水C | AV24: 一 | AW24: ℓ | AX24: 1 | BA24: 35125 | BJ24: 10000 | BQ24: =BA24*BJ24/1000 -> 351250 | BZ24: usa | CC24: 1000 | CJ24: =BA24*CC24/1000 -> 35125 | CS24: 2000 | CZ24: =BA24*CS24/1000 -> 70250 | DT24: jpn
B25: 7 | C25: 1 | E25: 13DZ111111 | V25: 032 | AA25: 薬用化粧品／薬用化粧水 | AN25: 化粧水C | AV25: 一 | AW25: ℓ | AX25: 1 | BA25: 35125 | BJ25: 0 | BQ25: =BA25*BJ25/1000 -> 0 | BZ25: gtm | CC25: 3000 | CJ25: =BA25*CC25/1000 -> 105375 | CS25: 0 | CZ25: =BA25*CS25/1000 -> 0 | DT25: jpn
B26: 8 | C26: 1 | E26: 13DZ111111 | V26: 032 | AA26: 薬用化粧品／薬用化粧水 | AN26: 化粧水C | AV26: 一 | AW26: ℓ | AX26: 1 | BA26: 35125 | BJ26: 0 | BQ26: =BA26*BJ26/1000 -> 0 | BZ26: swe | CC26: 4000 | CJ26: =BA26*CC26/1000 -> 140500 | CS26: 0 | CZ26: =BA26*CS26/1000 -> 0 | DT26: jpn
C27: 計 | O27: =IF(ROW()<=19, "",SUM(INDIRECT("O19:U"&(ROW()-1)))) -> 100000 | BQ27: =IF(ROW() <= 19, "", SUM(INDIRECT("BQ19:BY"&(ROW()-1)))) -> 365689.6 | CJ27: =IF(ROW() <= 19, "", SUM(INDIRECT("CJ19:CR"&(ROW()-1)))) -> 291867.906 | CZ27: =IF(ROW()<=19, "", SUM(INDIRECT("CZ19:DH"&(ROW()-1)))) -> 73821.694

Sheet 加重平均ツール
A1: =ROW() -3 -> -2 | G1: =E1*F1 -> 0
I2: 計算結果
B3: 項番 | C3: 品名 | D3: 販売先 | E3: 販売単価（円） | F3: 販売数量 | G3: 販売金額 | I3: 項番 | J3: 品名 | K3: 販売単価（円）
A4: =ROW() -3 -> 1 | B4: 1 | C4: 清涼剤 | D4: 卸業者A | E4: 9000 | F4: 10 | G4: =E4*F4 -> 90000 | I4: 1 | J4: 清涼剤 | K4: 8476
A5: 2 | B5: 1 | C5: 清涼剤 | D5: 卸業者B | E5: 8000 | F5: 11 | G5: 88000 | I5: 2 | J5: 石けんA | K5: 12709
A6: 3 | B6: 2 | C6: 石けんA | D6: 個人 | E6: 10000 | F6: 50 | G6: 500000 | I6: 3 | J6: 石けんB | K6: 23333
A7: 4 | B7: 2 | C7: 石けんA | D7: 卸業者A | E7: 13999 | F7: 200 | G7: 2799800 | I7: 6 | J7: 化粧水C | K7: 35125
A8: 5 | B8: 2 | C8: 石けんA | D8: 卸業者B | E8: 12300 | F8: 300 | G8: 3690000
A9: 6 | B9: 3 | C9: 石けんB | D9: 個人 | E9: 20000 | F9: 20 | G9: 400000
A10: 7 | B10: 3 | C10: 石けんB | D10: 卸業者A | E10: 24000 | F10: 100 | G10: 2400000
A11: 8 | B11: 6 | C11: 化粧水C | D11: usa | E11: 30000 | F11: 1000 | G11: 30000000
A12: 9 | B12: 6 | C12: 化粧水C | D12: gtm | E12: 45000 | F12: 3000 | G12: 135000000
A13: 10 | B13: 6 | C13: 化粧水C | D13: swe | E13: 29000 | F13: 4000 | G13: 116000000

Sheet 法人マスタ
A1: 法人番号 | B1: 商号又は名称 | C1: 所在地
A2: 1010001000591 | B2: 五十嵐医科工業株式会社 | C2: 東京都文京区本郷３丁目２５番２号
A3: 1010001000690 | B3: 株式会社インターメディカル | C3: 東京都文京区本郷３丁目１９番４号
A4: 1010001000831 | B4: 株式会社ＭＩＣメディカル | C4: 東京都港区赤坂１丁目１１番４４号
A5: 1010001000988 | B5: 株式会社エイコー | C5: 東京都文京区本郷１丁目１０番９号
A6: 1010001001375 | B6: エルテック株式会社 | C6: 東京都文京区湯島２丁目２０番６号
A7: 1010001001994 | B7: 株式会社キーラー・アンド・ワイナー | C7: 東京都文京区本郷３丁目３５番３号本郷ＵＣビル１Ｆ
A8: 1010001002225 | B8: 株式会社久我電子機器製作所 | C8: 東京都文京区千石４丁目４６番８号
A9: 1010001002258 | B9: 株式会社クリアー | C9: 東京都文京区小石川５丁目２３番９号
A10: 1010001002761 | B10: 株式会社コスミックコーポレーション | C10: 東京都文京区小石川２丁目７番３号
A11: 1010001002877 | B11: 三洋貿易株式会社 | C11: 東京都文京区湯島１丁目２番１０号
A12: 1010001003099 | B12: 株式会社阪本高生堂 | C12: 東京都文京区関口１丁目１５番１２号
A13: 1010001004188 | B13: センシンメディカル株式会社 | C13: 東京都文京区本郷３丁目２３番１３号
A14: 1010001004353 | B14: 第一医科株式会社 | C14: 東京都文京区本郷２丁目２７番１６号
A15: 1010001004403 | B15: 大洋製薬株式会社 | C15: 東京都文京区本郷３丁目１４番１６号
A16: 1010001005145 | B16: 株式会社オーランド | C16: 東京都文京区本郷３丁目３２番５号
A17: 1010001006333 | B17: 株式会社バイタル | C17: 東京都文京区西片１丁目２番５号
A18: 1010001006928 | B18: 株式会社フタバ | C18: 東京都文京区本郷３丁目３７番１４号
A19: 1010001007323 | B19: 松田医科工業株式会社 | C19: 東京都文京区湯島２丁目１３番４号
A20: 1010001007521 | B20: 円田医科工業株式会社 | C20: 東京都文京区湯島１丁目９番７号
A21: 1010001007612 | B21: ミズホ株式会社 | C21: 東京都文京区本郷３丁目３０番１３号
A22: 1010001007819 | B22: 株式会社メディカルサポート | C22: 東京都文京区本郷３丁目１４番１２号
A23: 1010001007884 | B23: ゼロシーセブン株式会社 | C23: 東京都港区赤坂５丁目４番７号
A24: 1010001008008 | B24: 山田医療照明株式会社 | C24: 東京都千代田区西神田２丁目３番１６号
A25: 1010001008651 | B25: ウシオ電機株式会社 | C25: 東京都千代田区丸の内１丁目６番５号
A26: 1010001008692 | B26: 住友商事株式会社 | C26: 東京都中央区晴海１丁目８番１１号
A27: 1010001008734 | B27: 日産化学工業株式会社 | C27: 東京都千代田区神田錦町３丁目７番地１
A28: 1010001008767 | B28: 三井物産株式会社 | C28: 東京都千代田区丸の内１丁目１番３号
A29: 1010001008833 | B29: 日本曹達株式会社 | C29: 東京都千代田区大手町２丁目２番１号
A30: 1010001009658 | B30: 株式会社アクロス | C30: 東京都千代田区一番町２２番地
A31: 1010001009674 | B31: 株式会社アクト | C31: 東京都千代田区富士見１丁目５番３号
A32: 1010001010351 | B32: アルゴフアイルジヤパン株式会社 | C32: 東京都千代田区神田美土代町３番４号
A33: 1010001011721 | B33: エー・アンド・エー株式会社 | C33: 東京都千代田区西神田３丁目３番５号
A34: 1010001011779 | B34: 株式会社エイコウ | C34: 東京都千代田区神田佐久間町３丁目２１番地
A35: 1010001014063 | B35: 株式会社ガイア | C35: 東京都千代田区九段南４丁目８番３０号
A36: 1010001014633 | B36: 株式会社協和 | C36: 東京都千代田区東神田２丁目１０番１６号
A37: 1010001015193 | B37: 株式会社クリエイト | C37: 東京都千代田区東神田２丁目４番２号
A38: 1010001015953 | B38: 国際交易株式会社 | C38: 東京都千代田区麹町３丁目１２番地８
A39: 1010001016530 | B39: ゴージョージャパン株式会社 | C39: 東京都千代田区内神田１丁目６番６号
A40: 1010001016828 | B40: 株式会社三幸社 | C40: 東京都千代田区神田錦町２丁目１１番地
A41: 1010001016927 | B41: エーディア株式会社 | C41: 東京都千代田区岩本町１丁目１０番６号
A42: 1010001020292 | B42: 株式会社スカイ | C42: 東京都千代田区有楽町１丁目９番１号
A43: 1010001020920 | B43: 株式会社ゼスト | C43: 東京都千代田区二番町１１番地１０
A44: 1010001020986 | B44: 株式会社セレクト | C44: 東京都千代田区東神田１丁目１１番７号
A45: 1010001022330 | B45: 株式会社タイセー | C45: 東京都千代田区神田和泉町一丁目５番地
A46: 1010001022363 | B46: 株式会社タイム | C46: 東京都千代田区神田錦町２丁目４番地
A47: 1010001022371 | B47: 株式会社タイム | C47: 東京都千代田区神田小川町１丁目４番地２風雲堂別館ビル
A48: 1010001025928 | B48: 株式会社ニッシン | C48: 東京都千代田区飯田橋１丁目７番９号
A49: 1010001026397 | B49: 株式会社ハウ | C49: 東京都港区南青山２丁目２２番１４号
A50: 1010001026505 | B50: 株式会社ハセガワ | C50: 東京都千代田区岩本町２丁目１３番６号
A51: 1010001028146 | B51: 株式会社フェニックス | C51: 東京都千代田区飯田橋４丁目４番８号
A52: 1010001030192 | B52: 株式会社ミハラ | C52: 東京都千代田区外神田６丁目１５番１４号外神田ストークビル４階
A53: 1010001030201 | B53: 株式会社ミヤシタ | C53: 東京都千代田区東神田３丁目２番４号東神田サマリヤマンション３０１号
A54: 1010001031001 | B54: 山川貿易株式会社 | C54: 東京都千代田区神田佐久間町３丁目２１番地
A55: 1010001031802 | B55: ライズ株式会社 | C55: 東京都千代田区飯田橋２丁目１番２号
A56: 1010001032131 | B56: リーブル株式会社 | C56: 東京都千代田区岩本町２丁目１番地１８号
A57: 1010001032263 | B57: 株式会社三善 | C57: 東京都文京区本駒込４丁目１９番１１号
A58: 1010001032577 | B58: 株式会社トラスト | C58: 東京都千代田区六番町１番地
A59: 1010001034160 | B59: 東京サービス株式会社 | C59: 東京都千代田区丸の内３丁目３番１号
A60: 1010001035010 | B60: わかもと製薬株式会社 | C60: 東京都中央区日本橋本町２丁目２番２号
A61: 1010001035084 | B61: 株式会社旭小津 | C61: 東京都中央区日本橋本町３丁目６番２号
A62: 1010001035522 | B62: 株式会社アクロス | C62: 東京都中央区東日本橋２丁目８番４号
A63: 1010001035530 | B63: 株式会社アクト | C63: 東京都中央区銀座７丁目３番１３号
A64: 1010001036149 | B64: 株式会社アルテ | C64: 東京都中央区八丁堀３丁目２３－６安達ビル７階
A65: 1010001036545 | B65: 甘糟化学産業株式会社 | C65: 東京都中央区日本橋本町１丁目５番９号
A66: 1010001041339 | B66: 協和産業株式会社 | C66: 東京都中央区日本橋人形町２丁目２０番６号
A67: 1010001041867 | B67: 教文館管財株式会社 | C67: 東京都中央区銀座４丁目５番１号教文館ビル内
A68: 1010001042519 | B68: 株式会社グロウ | C68: 東京都中央区東日本橋３丁目９番１２号
A69: 1010001042691 | B69: 京葉帝酸株式会社 | C69: 東京都中央区日本橋２丁目９番６号
A70: 1010001046180 | B70: 株式会社伸和 | C70: 東京都中央区銀座６丁目４番８号
A71: 1010001047914 | B71: 株式会社セイショー | C71: 東京都中央区日本橋室町１丁目５番２号
A72: 1010001048342 | B72: 日星産業株式会社 | C72: 東京都中央区日本橋本町１丁目１０番５号
A73: 1010001048755 | B73: 株式会社第一磁気研究所 | C73: 東京都中央区日本橋茅場町３丁目８番３号
A74: 1010001049308 | B74: 株式会社タナベ | C74: 東京都中央区日本橋人形町２丁目２番１号
A75: 1010001050439 | B75: 長光津株式会社 | C75: 東京都中央区銀座８丁目１５番１５号
A76: 1010001053879 | B76: 株式会社ニューメタルスエンドケミカルスコーポレーション | C76: 東京都中央区京橋１丁目２番５号京橋ＴＤビル
A77: 1010001055594 | B77: 藤川株式会社 | C77: 東京都中央区日本橋本町３丁目３番１３号
A78: 1010001056246 | B78: 株式会社プリズム | C78: 東京都中央区日本橋小網町１３番８号
A79: 1010001056667 | B79: ベルジュラックジャポン株式会社 | C79: 東京都中央区日本橋馬喰町１丁目４番８号
A80: 1010001057608 | B80: 株式会社マイテック | C80: 東京都中央区銀座１丁目１８番６号
A81: 1010001057640 | B81: 株式会社エクシーズ | C81: 東京都中央区日本橋堀留町２丁目１０番９号
A82: 1010001059769 | B82: 株式会社ユニコ | C82: 東京都中央区日本橋本町４丁目４番１６号
A83: 1010001062483 | B83: 株式会社日本ブライダルセンター | C83: 東京都中央区日本橋富沢町８番７号サンビル４階
A84: 1010001063242 | B84: 株式会社トライテック | C84: 東京都中央区八重洲２丁目６番５号
A85: 1010001063630 | B85: 株式会社テクノピア | C85: 東京都千代田区西神田３丁目１番２号
A86: 1010001064166 | B86: クー・サイエンスビューティー株式会社 | C86: 東京都中央区銀座２丁目１６番１１号
A87: 1010001065214 | B87: 信和アルコール産業株式会社 | C87: 東京都中央区日本橋小舟町６番６号
A88: 1010001065379 | B88: 株式会社テルヴィス | C88: 東京都中央区日本橋小伝馬町４番１１号
A89: 1010001067235 | B89: 株式会社三恵 | C89: 東京都中央区築地５丁目２番１号
A90: 1010001068992 | B90: 日本ポラデジタル株式会社 | C90: 東京都文京区湯島２丁目１６番１０号
A91: 1010001073927 | B91: 株式会社イーアールディー | C91: 東京都武蔵野市境南町２丁目７番６号
A92: 1010001074339 | B92: ジェイティック株式会社 | C92: 東京都中野区中野３丁目４４番１６号
A93: 1010001074462 | B93: ダイレックス・ジャパン株式会社 | C93: 東京都文京区本郷２丁目２６番１１号ＫＡＺＥＮ第２ビル
A94: 1010001074850 | B94: 株式会社プリズム | C94: 東京都文京区湯島２丁目２番１６号
A95: 1010001075907 | B95: サクラファインテックジャパン株式会社 | C95: 東京都中央区日本橋本町３丁目１番９号
A96: 1010001078653 | B96: 株式会社レドックス | C96: 東京都千代田区神田小川町３丁目６番１０号
A97: 1010001078991 | B97: フェニックスサイエンス株式会社 | C97: 東京都中央区新川１丁目２０番１号
A98: 1010001081021 | B98: 株式会社メディコム | C98: 東京都千代田区神田佐久間河岸９１番地
A99: 1010001081112 | B99: スミスメディカル・ジャパン株式会社 | C99: 東京都港区赤坂７丁目１番１号
A100: 1010001081806 | B100: フロンティアフーズ株式会社 | C100: 東京都千代田区神田小川町３丁目３番地２
A101: 1010001083579 | B101: 資生堂薬品株式会社 | C101: 東京都中央区銀座７丁目５番５号
A102: 1010001083975 | B102: ビタミンＣ６０バイオリサーチ株式会社 | C102: 東京都千代田区丸の内２丁目３－１
A103: 1010001084619 | B103: 株式会社ウーリ・ケム | C103: 東京都中央区新川１丁目３番９号宮崎新川ビル７階
A104: 1010001085154 | B104: 株式会社トップエレガンス | C104: 東京都中央区日本橋室町４丁目３番６号エレガンスビル２Ｆ
A105: 1010001085245 | B105: 株式会社トレードワークス | C105: 東京都千代田区一番町４番６号
A106: 1010001085261 | B106: 株式会社アイ・ティ・エス | C106: 東京都中央区東日本橋２丁目１３番２号
A107: 1010001086615 | B107: ギブン・イメージング株式会社 | C107: 東京都世田谷区用賀４丁目１０番２号
A108: 1010001086821 | B108: 株式会社アーヴァン・コーポレーション | C108: 東京都中央区日本橋蛎殻町１丁目１８番８号
A109: 1010001086961 | B109: 株式会社アルト | C109: 東京都千代田区神田三崎町２丁目２０－７水道橋西口会館７０４号室
A110: 1010001089519 | B110: 新成物産株式会社 | C110: 東京都中央区日本橋兜町１３番２号
A111: 1010001090781 | B111: 株式会社ベステック | C111: 東京都千代田区三番町２４番地３
A112: 1010001091383 | B112: 日本ジェネリック株式会社 | C112: 東京都千代田区丸の内１丁目９番１号
A113: 1010001091672 | B113: ＥＰＪメディカルサービス株式会社 | C113: 東京都中央区日本橋大伝馬町２番１１号
A114: 1010001092084 | B114: 株式会社メディカ | C114: 東京都中央区佃１丁目１１番９号
A115: 1010001092472 | B115: 株式会社ブルックス | C115: 東京都中央区日本橋本町２丁目６番１３号
A116: 1010001093826 | B116: 株式会社アルファコーポレーション | C116: 東京都中央区日本橋小網町７番８号
A117: 1010001093990 | B117: 株式会社ルック | C117: 東京都千代田区岩本町３丁目７番２号
A118: 1010001094015 | B118: ケーシーアイ株式会社 | C118: 東京都千代田区紀尾井町３番１２号紀尾井町ビル
A119: 1010001095351 | B119: 大作商事株式会社 | C119: 東京都千代田区内幸町１丁目１番１号
A120: 1010001095640 | B120: 第一三共株式会社 | C120: 東京都中央区日本橋本町３丁目５番１号
A121: 1010001098817 | B121: 株式会社ＥＸＣＥＥＤ | C121: 東京都千代田区神田神保町２丁目８番地
A122: 1010001098924 | B122: 株式会社タナベ | C122: 東京都中央区日本橋茅場町１丁目２番１２号
A123: 1010001099559 | B123: 株式会社アックス | C123: 東京都中央区日本橋箱崎町２２番１号
A124: 1010001100284 | B124: 株式会社三善 | C124: 東京都中央区築地６丁目５番５号
A125: 1010001100318 | B125: 株式会社未来工房 | C125: 東京都文京区関口１丁目８番６号メゾン文京関口ＩＩ３０３号室
A126: 1010001100607 | B126: 株式会社ウイスマー | C126: 東京都文京区本郷３丁目３番１２号
A127: 1010001100929 | B127: 株式会社アプリ | C127: 東京都足立区中川２丁目２番１４号
A128: 1010001102231 | B128: 株式会社シヅメメディカル | C128: 東京都文京区本郷３丁目１２番３号
A129: 1010001102990 | B129: 株式会社アイランド | C129: 東京都千代田区九段南４丁目８－３０アルス市ヶ谷８０３
A130: 1010001103766 | B130: 株式会社ビクトリー | C130: 東京都文京区千石４丁目４４番８号徳田ビル２０２号
A131: 1010001103790 | B131: コロプラスト株式会社 | C131: 東京都千代田区九段南２丁目１番３０号
A132: 1010001104401 | B132: 株式会社銀座・トマト | C132: 東京都中央区銀座８丁目１０番４号
A133: 1010001104673 | B133: 株式会社ユニークス | C133: 東京都中央区東日本橋３丁目１２番９号
A134: 1010001104987 | B134: 株式会社エイムス | C134: 東京都中央区銀座２丁目１１番８号第２２中央ビル３Ｆ
A135: 1010001105052 | B135: アリアプラ株式会社 | C135: 東京都千代田区内神田２丁目７番１０号松楠ビル
A136: 1010001108014 | B136: 株式会社ワールド・レップ・サービス | C136: 東京都中央区日本橋茅場町３丁目５番３号日宝茅場町ビル３階
A137: 1010001109292 | B137: 株式会社ニーズ | C137: 東京都中央区勝どき６丁目３番１－２４０９号
A138: 1010001109615 | B138: 株式会社ジェイ・エム・エス | C138: 東京都中央区入船３丁目１番６－６０５号
A139: 1010001112453 | B139: 株式会社アドバンス | C139: 東京都武蔵野市吉祥寺南町１丁目８－８サンパレス吉祥寺南２０２号室
A140: 1010001113088 | B140: 株式会社シャローム | C140: 東京都千代田区飯田橋１丁目１１番４号シャローム飯田橋２Ｆ
A141: 1010001114144 | B141: 株式会社アイシス | C141: 東京都文京区湯島３丁目３７番１３号
A142: 1010001114623 | B142: 株式会社ポラリス | C142: 東京都文京区本郷４丁目２４番５号
A143: 1010001114821 | B143: 株式会社エフワークス | C143: 東京都中央区日本橋茅場町１丁目１３番２１号
A144: 1010001114904 | B144: 株式会社プレイス | C144: 東京都千代田区九段北１丁目９番５号
A145: 1010001115274 | B145: 株式会社ライフサポート | C145: 東京都台東区台東１丁目１４番１０号
A146: 1010001115621 | B146: 株式会社クリエイト | C146: 東京都中央区日本橋箱崎町１６番１号
A147: 1010001116082 | B147: 株式会社ネクスト | C147: 東京都千代田区神田佐久間町１丁目１６番
A148: 1010001116446 | B148: アドビー・ジャパン株式会社 | C148: 東京都千代田区岩本町１丁目４番４号神田第４パークビル２階
A149: 1010001116636 | B149: 日本メダック株式会社 | C149: 東京都中央区日本橋小舟町１２番１２号
A150: 1010001117353 | B150: 株式会社トレジャー | C150: 東京都中央区日本橋浜町２丁目３３番５号
A151: 1010001118079 | B151: 株式会社ｒｅｄｅｃｔ | C151: 東京都羽村市神明台３丁目１番地８
A152: 1010001118293 | B152: 株式会社マキシミリアン・ラボラトリー | C152: 東京都中央区銀座１丁目６番８号
A153: 1010001118450 | B153: 株式会社ガイア | C153: 東京都中央区月島４丁目３－１７－３０２
A154: 1010001118673 | B154: 野口グローバルライフ株式会社 | C154: 東京都千代田区岩本町２丁目４番５号
A155: 1010001118839 | B155: 株式会社ティーズインターナショナル | C155: 東京都世田谷区赤堤１丁目１２番１２号
A156: 1010001119894 | B156: Ｅｕｒｏ Ｖｉｓｉｏｎ株式会社 | C156: 東京都中央区日本橋浜町１丁目３番１２号
A157: 1010001120646 | B157: ベアエッセンシャル株式会社 | C157: 東京都中央区銀座２丁目４番９号ＳＰＰ銀座ビル７階
A158: 1010001121917 | B158: 株式会社アルマダ | C158: 東京都渋谷区恵比寿４丁目１１番９号
A159: 1010001122452 | B159: 株式会社ミント | C159: 東京都中央区日本橋小伝馬町７番１２号
A160: 1010001122460 | B160: 株式会社ネクスト | C160: 東京都中央区日本橋室町１丁目１３番１号
A161: 1010001123112 | B161: 株式会社優翔 | C161: 東京都文京区西片２丁目１６番２５号
A162: 1010001123277 | B162: 株式会社セレクト | C162: 東京都中央区東日本橋３丁目６番６号
A163: 1010001123442 | B163: 株式会社セレス | C163: 東京都中央区築地１丁目９番９号
A164: 1010001123715 | B164: ＨＯＬＴジャパン株式会社 | C164: 東京都中央区日本橋茅場町１丁目１番８号
A165: 1010001125637 | B165: 株式会社アルファ | C165: 東京都千代田区内神田３丁目２１番８号
A166: 1010001125934 | B166: ライズ株式会社 | C166: 東京都千代田区岩本町２丁目２番７号
A167: 1010001127872 | B167: 株式会社イドゥン | C167: 東京都中央区東日本橋２丁目２５番６号ＳＵＲＰＲＩＳＥ、ＢＬＤＧ２Ｆ
A168: 1010001128152 | B168: 株式会社シーク | C168: 東京都中央区東日本橋２丁目２８番４号日本橋ＣＥＴビル２階
A169: 1010001128400 | B169: 株式会社アルファ | C169: 東京都千代田区東神田１丁目２番１１号
A170: 1010001130942 | B170: 株式会社ガイア | C170: 東京都千代田区神田三崎町３丁目５番６号
A171: 1010001131916 | B171: デヴィコア・メディカル・ジャパン株式会社 | C171: 東京都新宿区高田馬場１丁目２９番９号東亜ＤＫＫ株式会社別館オフィスビル７階
A172: 1010001132179 | B172: ユニシティ・ジャパン株式会社 | C172: 東京都品川区大崎１丁目６番１号
A173: 1010001132286 | B173: シド株式会社 | C173: 東京都中央区銀座３丁目８番４号
A174: 1010001132344 | B174: 株式会社アルファコーポレーション | C174: 東京都中央区日本橋茅場町２丁目９番５号
A175: 1010001133227 | B175: 株式会社ＡｉｍｅｄｉｃＭＭＴ | C175: 東京都港区港南１丁目２番７０号
A176: 1010001133656 | B176: 株式会社ＰＭＣ | C176: 東京都千代田区西神田２丁目５番８号
A177: 1010001133904 | B177: 株式会社メディテック | C177: 東京都千代田区神田司町２丁目２１番光和ビル
A178: 1010001134076 | B178: 株式会社アルファ | C178: 東京都中央区日本橋茅場町２丁目１０番１０号
A179: 1010001134679 | B179: 株式会社大創 | C179: 東京都千代田区東神田１丁目１１番７号ハイツ神田岩本町２０７
A180: 1010001135017 | B180: 株式会社インサイト | C180: 東京都港区芝５丁目３３番１号
A181: 1010001135090 | B181: 株式会社ネクスト | C181: 東京都港区西新橋１丁目１９番６号桔梗備前ビル５０３
A182: 1010001135784 | B182: 株式会社伸和 | C182: 東京都新宿区四谷３丁目６番７号４Ｆ
A183: 1010001137764 | B183: 株式会社プロシード | C183: 東京都千代田区二番町１番地
A184: 1010001137954 | B184: 株式会社高研 | C184: 東京都文京区後楽１丁目４番１４号
A185: 1010001138044 | B185: バイオジェネシス株式会社 | C185: 千葉県市川市市川１丁目４番２号
A186: 1010001138102 | B186: 株式会社ＵＮ ＩＮＴＥＲＮＡＴＩＯＮＡＬ | C186: 東京都千代田区丸の内１丁目８番２号
A187: 1010001139728 | B187: 株式会社ライフサイエンスラボ | C187: 東京都中央区日本橋小舟町４番１号
A188: 1010001139959 | B188: 株式会社トラスト | C188: 東京都千代田区神田佐久間町１丁目９番第７東ビル６０２号
A189: 1010001140099 | B189: 株式会社メディクレスト | C189: 東京都中央区八丁堀１丁目７番７号
A190: 1010001140198 | B190: 株式会社イノテック | C190: 東京都千代田区紀尾井町３番２９号
A191: 1010001143903 | B191: 株式会社トレジャー | C191: 東京都中央区日本橋本町１丁目１番８号ＫＤＸ新日本橋ビル
A192: 1010001144348 | B192: 株式会社ＨＢＣ | C192: 福島県郡山市田村町大善寺字中山田１２１番地
A193: 1010001144430 | B193: 株式会社アンフィニ | C193: 東京都荒川区東日暮里４丁目１５番１５号
A194: 1010001144950 | B194: 株式会社マイスター | C194: 東京都千代田区神田美倉町９番地
A195: 1010001145718 | B195: 株式会社イージーポップ | C195: 東京都台東区浅草橋４丁目１０番４号
A196: 1010001146253 | B196: 株式会社Ｋ－ＳＴＹＬＥ | C196: 東京都千代田区内神田１丁目１５番６号
A197: 1010001146427 | B197: 高砂貿易株式会社 | C197: 30東京都千代田区"
A198: 1010001146451 | B198: 昭和薬品化工株式会社 | C198: 東京都中央区京橋２丁目１７番１１号
A199: 1010001146617 | B199: 株式会社ミネルヴァ | C199: 東京都中央区日本橋人形町１丁目５番６号
A200: 1010001146798 | B200: 株式会社エフ・アイ・ティ | C200: 東京都千代田区神田須田町１丁目７番５号神田ミハマビル８階
... 2801 more rows

Sheet 国マスタ
A1: 番号 | B1: 国又は地域
A2: 100 | B2: アジア州（国・地域は不明）
A3: 200 | B3: ヨーロッパ州（国・地域は不明）
A4: 300 | B4: 北アメリカ州（国・地域は不明）
A5: 400 | B5: 南アメリカ州（国・地域は不明）
A6: 500 | B6: アフリカ州（国・地域は不明）
A7: 600 | B7: 大洋州（国・地域は不明）
A8: exp | B8: 国・地域は不明だが、輸出予定
A9: afg | B9: アフガニスタン
A10: ago | B10: アンゴラ
A11: aia | B11: 英領アンギラ
A12: alb | B12: アルバニア
A13: and | B13: アンドラ
A14: ant | B14: 蘭領アンティール
A15: are | B15: アラブ首長国連邦
A16: arg | B16: アルゼンチン
A17: arm | B17: アルメニア
A18: asm | B18: 米領サモア
A19: ata | B19: 英領南極地域
A20: atg | B20: アンティグア・バーブーダ
A21: aus | B21: オーストラリア
A22: aut | B22: オーストリア
A23: aze | B23: アゼルバイジャン
A24: azo | B24: アゾレス（葡）
A25: bdi | B25: ブルンジ
A26: bel | B26: ベルギー
A27: ben | B27: ベナン
A28: bfa | B28: ブルキナファソ
A29: bgd | B29: バングラデシュ
A30: bgr | B30: ブルガリア
A31: bhr | B31: バーレーン
A32: bhs | B32: バハマ
A33: bih | B33: ボスニア・ヘルツェゴビナ
A34: blr | B34: ベラルーシ
A35: blz | B35: ベリーズ
A36: bmu | B36: バーミュダ（英）
A37: bol | B37: ボリビア
A38: bra | B38: ブラジル
A39: brb | B39: バルバドス
A40: brn | B40: ブルネイ
A41: btn | B41: ブータン
A42: caf | B42: 中央アフリカ
A43: can | B43: カナダ
A44: cas | B44: カナリー諸島（西）
A45: cck | B45: その他のオーストラリア領
A46: cem | B46: セウタ及びメリリヤ（西）
A47: che | B47: スイス
A48: chl | B48: チリ
A49: chn | B49: 中華人民共和国
A50: civ | B50: コートジボワール
A51: cmr | B51: カメルーン
A52: cod | B52: コンゴ民主共和国
A53: cog | B53: コンゴ共和国
A54: cok | B54: クック諸島（ニュージーランド）
A55: col | B55: コロンビア
A56: cpv | B56: カーボヴェルデ
A57: cri | B57: コスタリカ
A58: cub | B58: キューバ
A59: cym | B59: ケイマン諸島（英）
A60: cyp | B60: キプロス
A61: cze | B61: チェコ
A62: deu | B62: ドイツ
A63: dji | B63: ジブチ
A64: dma | B64: ドミニカ
A65: dnk | B65: デンマーク
A66: dom | B66: ドミニカ共和国
A67: dza | B67: アルジェリア
A68: ecu | B68: エクアドル
A69: egy | B69: エジプト
A70: esh | B70: 西サハラ
A71: esp | B71: スペイン
A72: est | B72: エストニア
A73: eth | B73: エチオピア
A74: fii | B74: 仏領西インド諸島
A75: fin | B75: フィンランド
A76: fji | B76: フィジー
A77: flk | B77: フォークランド諸島及びその附属諸島（英）
A78: fra | B78: フランス
A79: fsm | B79: ミクロネシア
A80: gab | B80: ガボン
A81: gbr | B81: 英国
A82: geo | B82: グルジア
A83: gha | B83: ガーナ
A84: gib | B84: ジブラルタル（英）
A85: gin | B85: ギニア
A86: gmb | B86: ガンビア
A87: gnb | B87: ギニア・ビサウ
A88: gnq | B88: 赤道ギニア
A89: grc | B89: ギリシャ
A90: grd | B90: グレナダ
A91: ｇｒｌ | B91: グリーンランド（デンマーク）
A92: gtm | B92: グアテマラ
A93: guf | B93: 仏領ギアナ
A94: gum | B94: グアム（米）
A95: guy | B95: ガイアナ
A96: hkg | B96: 香港
A97: hnd | B97: ホンジュラス
A98: hrv | B98: クロアチア
A99: hti | B99: ハイチ
A100: hun | B100: ハンガリー
A101: idn | B101: インドネシア
A102: imn | B102: マン島
A103: ind | B103: インド
A104: irl | B104: アイルランド
A105: irn | B105: イラン
A106: irq | B106: イラク
A107: isl | B107: アイスランド
A108: isr | B108: イスラエル
A109: ita | B109: イタリア
A110: jam | B110: ジャマイカ
A111: jor | B111: ヨルダン
A112: jpn | B112: 日本国
A113: kaz | B113: カザフスタン
A114: ken | B114: ケニア
A115: kgz | B115: キルギス
A116: khm | B116: カンボジア
A117: kir | B117: キリバス
A118: kna | B118: セントクリストファー・ネーヴィス
A119: kor | B119: 大韓民国
A120: kos | B120: コソボ
A121: kwt | B121: クウェート
A122: lao | B122: ラオス
A123: lbn | B123: レバノン
A124: lbr | B124: リベリア
A125: lby | B125: リビア
A126: lca | B126: セントルシア
A127: lie | B127: リヒテンシュタイン
A128: lka | B128: スリランカ
A129: ltu | B129: リトアニア
A130: lux | B130: ルクセンブルク
A131: lva | B131: ラトビア
A132: mac | B132: マカオ
A133: mar | B133: モロッコ
A134: mco | B134: モナコ
A135: mda | B135: モルドバ
A136: mdg | B136: マダガスカル
A137: mdv | B137: モルディブ
A138: mex | B138: メキシコ
A139: mhl | B139: マーシャル
A140: mkd | B140: マケドニア旧ユーゴスラヴィア共和国
A141: mli | B141: マリ
A142: mlt | B142: マルタ
A143: mmr | B143: ミャンマー
A144: mne | B144: モンテネグロ
A145: mng | B145: モンゴル
A146: mnp | B146: 北マリアナ諸島（米）
A147: moz | B147: モザンビーク
A148: mrt | B148: モーリタニア
A149: msr | B149: モントセラト（英）
A150: mus | B150: モーリシャス
A151: mys | B151: マレーシア
A152: nam | B152: ナミビア
A153: ncl | B153: ニューカレドニア（仏）
A154: ner | B154: ニジェール
A155: nga | B155: ナイジェリア
A156: nic | B156: ニカラグア
A157: niu | B157: ニウエ
A158: nld | B158: オランダ
A159: nor | B159: ノルウェー
A160: npl | B160: ネパール
A161: nru | B161: ナウル
A162: nzl | B162: ニュージーランド
A163: omn | B163: オマーン
A164: pak | B164: パキスタン
A165: pan | B165: パナマ
A166: pcn | B166: ピットケルン（英）
A167: per | B167: ペルー
A168: phl | B168: フィリピン
A169: plw | B169: パラオ
A170: png | B170: パプアニューギニア
A171: pol | B171: ポーランド
A172: pri | B172: プエルトリコ（米）
A173: prk | B173: 北朝鮮
A174: prt | B174: ポルトガル
A175: pry | B175: パラグアイ
A176: pse | B176: ヨルダン川西岸及びガザ
A177: pyf | B177: 仏領ポリネシア
A178: qat | B178: カタール
A179: reu | B179: レユニオン（仏）
A180: rou | B180: ルーマニア
A181: rus | B181: ロシア
A182: rwa | B182: ルワンダ
A183: sau | B183: サウジアラビア
A184: sdn | B184: スーダン
A185: sen | B185: セネガル
A186: sgp | B186: シンガポール
A187: shn | B187: セントヘレナ及びその附属諸島（英）
A188: slb | B188: ソロモン
A189: sle | B189: シエラレオネ
A190: slv | B190: エルサルバドル
A191: smr | B191: サンマリノ
A192: som | B192: ソマリア
A193: spm | B193: サンピエール及びミクロン（仏）
A194: srb | B194: セルビア
A195: stp | B195: サントメ・プリンシペ
A196: sur | B196: スリナム
A197: svk | B197: スロバキア
A198: svn | B198: スロベニア
A199: swe | B199: スウェーデン
A200: syc | B200: セーシェル
... 31 more rows

Sheet 医薬部外品マスタ
A1: 分類番号 | B1: 分類名/特掲名 | C1: 記入単位
A2: 011 | B2: 口中清涼剤／アセン薬製剤（丸剤のみ） | C2: 一 | D2: kg
A3: 012 | B3: 口中清涼剤／その他（011以外）
A4: 021 | B4: 薬用歯みがき剤／薬用練歯みがき | C4: 一 | D4: kg
A5: 022 | B5: 薬用歯みがき剤／その他（021以外）
A6: 031 | B6: 薬用化粧品／薬用クリーム | C6: 一 | D6: kg
A7: 032 | B7: 薬用化粧品／薬用化粧水 | C7: 一 | D7: ℓ
A8: 033 | B8: 薬用化粧品／薬用乳液 | C8: 一 | D8: ℓ
A9: 034 | B9: 薬用化粧品／薬用シャンプー | C9: 一 | D9: ℓ
A10: 035 | B10: 薬用化粧品／薬用リンス | C10: 一 | D10: ℓ
A11: 036 | B11: 薬用化粧品／薬用石けん | C11: 一 | D11: kg
A12: 037 | B12: 薬用化粧品／その他（031～036以外：ひげそり剤、日やけ止め剤、パック等）
A13: 041 | B13: 毛髪用剤／育毛液剤 | C13: 一 | D13: ℓ
A14: 042 | B14: 毛髪用剤／除毛剤 | C14: 一 | D14: kg
A15: 043 | B15: 毛髪用剤／染毛剤 | C15: 一 | D15: kg
A16: 044 | B16: 毛髪用剤／脱色・脱染剤 | C16: 一 | D16: kg
A17: 045 | B17: 毛髪用剤／チオグリコール酸含有パーマネント・ウェーブ用剤第１剤（パーマネント・ウェーブ用剤） | C17: 一 | D17: ℓ
A18: 046 | B18: 毛髪用剤／システイン酸含有パーマネント・ウェーブ用剤第１剤（パーマネント・ウェーブ用剤） | C18: 一 | D18: ℓ
A19: 047 | B19: 毛髪用剤／縮毛矯正剤第１剤（パーマネント・ウエーブ用剤） | C19: 一 | D19: ℓ
A20: 048 | B20: 毛髪用剤／その他（041～047以外） | AU20: 一 | AV20: 回
A21: 051 | B21: 浴用剤／粉末浴用剤（顆粒を含む） | C21: 一 | D21: kg
A22: 052 | B22: 浴用剤／その他（051以外））
A23: 061 | B23: てんか粉類
A24: 071 | B24: 腋臭防止剤
A25: 081 | B25: 防虫剤（ジエチルトアミド製剤、フタル酸ジメチル製剤等）
A26: 091 | B26: 殺虫剤／蚊取線香 | C26: 一 | D26: kg
A27: 092 | B27: 殺虫剤／電気蚊取 | C27: 一 | D27: kg
A28: 093 | B28: 殺虫剤／ピレトリン誘導体含有エアゾール剤 | C28: 一 | D28: ℓ
A29: 094 | B29: 殺虫剤／その他（091～093以外）
A30: 101 | B30: 殺そ剤／オキシクマリン誘導体末 | C30: 一 | D30: kg
A31: 102 | B31: 殺そ剤／その他（101以外）
A32: 111 | B32: コンタクトレンズ洗浄剤
A33: 121 | B33: のど清涼剤
A34: 131 | B34: 健胃清涼剤／健胃清涼剤液剤 | C34: 一 | D34: ℓ
A35: 132 | B35: 健胃清涼剤／その他（131以外）
A36: 141 | B36: 外皮消毒剤
A37: 151 | B37: きず消毒保護剤
A38: 161 | B38: ひび・あかぎれ用剤（クロルヘキシジン主剤、メントール・カンフル主剤、ビタミンＡＥ主剤）
A39: 171 | B39: あせも・ただれ用剤
A40: 181 | B40: うおのめ・たこ用剤
A41: 191 | B41: かさつき・あれ用剤
A42: 201 | B42: ビタミンＣ剤
A43: 211 | B43: ビタミンＥ剤
A44: 221 | B44: ビタミンＥＣ剤
A45: 231 | B45: ビタミン含有保健剤／ビタミン含有保健剤液剤 | C45: 一 | D45: ℓ
A46: 232 | B46: ビタミン含有保健剤／その他（231以外）
A47: 241 | B47: カルシウム剤
A48: 251 | B48: いびき防止剤
A49: 261 | B49: カルシウムを主たる有効成分とする保健薬（241以外）
A50: 271 | B50: 含嗽薬
A51: 281 | B51: 健胃薬（131及び391以外）
A52: 291 | B52: 口腔咽喉薬（121以外）
A53: 301 | B53: コンタクトレンズ装着薬
A54: 311 | B54: 殺菌消毒薬（141又は151以外）
A55: 321 | B55: しもやけ・あかぎれ用薬（161以外）
A56: 331 | B56: 瀉下薬
A57: 341 | B57: 消化薬（391以外）
A58: 351 | B58: 生薬を主たる有効成分とする保健薬
A59: 361 | B59: 整腸薬（391以外）
A60: 371 | B60: 鼻づまり改善薬（外用剤に限る）
A61: 381 | B61: ビタミンを含有する保健薬（231以外）
A62: 391 | B62: 健胃薬、消化薬又は整腸薬のうち、いずれか２以上に該当するもの
A63: 401 | B63: 医薬部外品脱脂綿
A64: 411 | B64: 生理処理用品

Sheet chosahyosystem (hidden)
A1: 00450151
A2: YAKUJI0000001617
A4: 9NC7
A6: XXXX
A7: 00450151
A8: 1518
A9: YAKUJI0000001617
A10: 004501510011
A11: 00

Sheet 単位マスタ
A1: 記入単位
A2: 錠
A3: カプセル
A4: 丸
A5: ｇ
A6: ｋｇ
A7: mℓ
A8: ℓ
A9: ｋℓ
A10: 個
A11: 枚

Sheet 外国製造業者マスタ
A1: 認定・登録番号 | B1: 名称
A2: DG10300002 | B2: ＳＯＫＹ Ｃ＆Ｔ ＣＯ．，ＬＴＤ．
A3: DG10300003 | B3: Ｐｒｏｃｔｅｒ ＆ Ｇａｍｂｌｅ Ｋｏｒｅａ， Ｉｎｃ．
A4: DG10300004 | B4: Ｈｅｎｋｅｌ Ｈｏｍｅ Ｃａｒｅ Ｋｏｒｅａ
A5: DG10300005 | B5: Ｊｏｈｎｓｏｎ ＆ Ｊｏｈｎｓｏｎ Ｋｏｒｅａ Ｌｔｄ．
A6: DG10300006 | B6: ＰＯＬＹＴＯＵＣＨ Ｃｏ．，Ｌｔｄ．
A7: DG10300008 | B7: Ｓｕｗｏｎ Ｐｌａｎｔ
A8: DG10300015 | B8: ＬＧ ＨＯＵＳＥＨＯＬＤ＆ＨＥＡＬＴＨ ＣＡＲＥ ＬＴＤ． ＣＨＥＯＮＧＪＵ ＦＡＣＴＯＲＹ
A9: DG10300020 | B9: ＰＬ Ｃｏｓｍｅｔｉｃ．ｃｏ．ｌｔｄ．
A10: DG10300023 | B10: ＴＡＥＢＯＮＧ ＣＯ．，ＬＴＤ
A11: DG10300024 | B11: ＬＧ Ｕｎｉｃｈａｒｍ Ｃｏ．，Ｌｔｄ．
A12: DG10300026 | B12: 株式会社泰奉
A13: DG10300033 | B13: ＩＬＪＩＮ ＣＯＳＭＥＴＩＣＳ ＣＯ．， ＬＴＤ．
A14: DG10300037 | B14: Ａｍｏｒｅｐａｃｉｆｉｃ Ｍａｓｓｃｏｓｍｅｔｉｃ Ｃｏｍｐｌｅｘ
A15: DG10300038 | B15: Ｃｏｓｖｉｓｉｏｎ Ｄａｅｊｅｏｎ Ｐｌａｎｔ
A16: DG10300043 | B16: ＰＬ Ｃｏｓｍｅｔｉｃ．ｃｏ．ｌｔｄ．
A17: DG10300044 | B17: ＤＯＮＧＳＵＮＧ ＰＨＡＲＭ．ＣＯ．，ＬＴＤ． ＡＳＡＮ ＦＡＣＴＯＲＹ
A18: DG10300045 | B18: Ａｅｋｙｕｎｇ Ｉｎｄ．Ｃｏ．，Ｌｔｄ． Ｃｈｅｏｎｇｙａｎｇ Ｆａｃｔｏｒｙ
A19: DG10300046 | B19: Ｔａｅｙａｎｇ ｆａｃｔｏｒｙ
A20: DG10300047 | B20: ＬＧ Ｕｎｉｃｈａｒｍ Ｃｏ．，Ｌｔｄ． Ｋｕｍｉ ｆａｃｔｏｒｙ２
A21: DG10300048 | B21: ＥＣＯ ＷＯＲＬＤ ＣＯ，Ｌｔｄ
A22: DG10300049 | B22: Ｄｏｎｇ Ｗｈａ Ｐｈａｒｍ．Ｃｏ．，Ｌｔｄ．
A23: DG10300050 | B23: Ｋｏｒｅａ Ｃｏｓｐａｃｋ Ｃｏ．，Ｌｔｄ．
A24: DG10300051 | B24: ＳＥＵＮＧＩＬ Ｃｏｒｐｏｒａｔｉｏｎ （Ｔｈｅ ｓｅｃｏｎｄ ｆａｃｔｏｒｙ）
A25: DG10300052 | B25: ウェルコス（ＷＥＬＣＯＳ Ｃｏ．，Ｌｔｄ）
A26: DG10300053 | B26: ＤＯＮＧＢＡＮＧ ＣＯＳＭＥＴＩＣＳ
A27: DG10300054 | B27: Ａｍｏｒｅｐａｃｉｆｉｃ Ｂｅａｕｔｙ Ｃｏｍｐｌｅｘ
A28: DG10500001 | B28: 天津阿斯化学有限公司 第一工場
A29: DG10500002 | B29: ＺＨＯＮＧＳＨＡＮ ＣＩＴＹ ＲＩＤＡ ＣＯＳＭＥＴＩＣＳ ＣＯ．，ＬＴＤ．
A30: DG10500003 | B30: 天津凱思化<hka>しょう</hka>制品有限公司
A31: DG10500004 | B31: 上海美莉娜化粧品有限公司
A32: DG10500005 | B32: Ｈｅｎｋｅｌ（Ｃｈｉｎａ）Ｃｏｍｐａｎｙ Ｌｉｍｉｔｅｄ Ｂｅｉｊｉｎｇ Ｂｒａｎｃｈ
A33: DG10500006 | B33: 上海大造氣霧劑有限公司 上海工場
A34: DG10500008 | B34: 安速日用化学（蘇州）有限公司 蘇州Ａ－１工場
A35: DG10500009 | B35: 営口三喜加工有限公司 海東工場
A36: DG10500010 | B36: ｂｅａｕｔｙｃｏｓ Ｉｎｔｅｒｎａｔｉｏｎａｌ Ｃｏ．，Ｌｔｄ．
A37: DG10500011 | B37: 杭州井藤漢方保健食品有限公司
A38: DG10500012 | B38: スゾウ ボレージ デイリー ケミカル
A39: DG10500013 | B39: 蘇州黒龍堂化粧品 有限公司
A40: DG10500014 | B40: ＫＯＳＥ（´） Ｃｏｓｍｅｔｉｃｓ Ｃｏ．，Ｌｔｄ．
A41: DG10500018 | B41: Ｍｅｎｔｈｏｌａｔｕｍ （Ｃｈｉｎａ） Ｐｈａｒｍａｃｅｕｔｉｃａｌｓ Ｃｏ．，Ｌｔｄ．
A42: DG10500022 | B42: 蘇州鈴蘭衛生用品有限公司
A43: DG10500023 | B43: 蘇州中化薬品工業有限公司
A44: DG10500025 | B44: Ｔｉａｎｊｉｎ Ｘｉｑｉｎｇ Ｂｒａｎｃｈ Ｏｆｆｉｃｅ， Ｐｒｏｃｔｅｒ ＆ Ｇａｍｂｌｅ （Ｇｕａｎｇｚｈｏｕ） Ｌｔｄ．
A45: DG10500030 | B45: 盛勢達（広州）化工有限公司
A46: DG10500031 | B46: Ｈｕａｎｇｐｕ Ｐｌａｎｔ， Ｐｒｏｃｔｅｒ ＆ Ｇａｍｂｌｅ （Ｇｕａｎｇｚｈｏｕ） Ｌｔｄ．
A47: DG10500032 | B47: 科瑪化粧品（蘇州）有限公司
A48: DG10500034 | B48: 浙江天惠保健品有限公司
A49: DG10500035 | B49: 江蘇隆力奇生物科技股分有限公司
A50: DG10500037 | B50: 大扇（上海）有限公司
A51: DG10500038 | B51: 無錫日合日用化学品有限公司
A52: DG10500039 | B52: 天津阿斯化学有限公司 本社工場
A53: DG10500040 | B53: ＡＭＯ（Ｈａｎｇｚｈｏｕ）Ｃｏ．，Ｌｔｄ．
A54: DG10500040 | B54: ＡＭＯ（Ｈａｎｇｚｈｏｕ）Ｃｏ．，Ｌｔｄ．
A55: DG10500041 | B55: 寧波櫻花炭語日化用品有限公司
A56: DG10500042 | B56: 上海家化聯合股<hka>ふん</hka>有限公司中央工場
A57: DG10500043 | B57: Ｋａｎｇ Ｎａ Ｈｓｉｕｎｇ Ｅｎｔｅｒｐｒｉｓｅ （Ｓｈａｎｇｈａｉ） Ｃｏ．， Ｌｔｄ．
A58: DG10500044 | B58: 伊<hka>せ</hka>半（天津）化<hka>しょう</hka>品有限公司
A59: DG10500046 | B59: 上海花王有限公司上海工場
A60: DG10500047 | B60: 朋友化粧品（蘇州）有限公司
A61: DG10500048 | B61: Ｒｅｃｋｉｔｔ Ｂｅｎｃｋｉｓｅｒ Ｈｏｕｓｅｈｏｌｄ Ｐｒｏｄｕｃｔｓ（Ｃｈｉｎａ）Ｃｏ．，Ｌｔｄ．Ｊｉｎｇｚｈｏｕ Ｓｉｔｅ
A62: DG10500049 | B62: ＪＶ Ｃｏｓｍｅｔｉｃｓ（Ｄｏｎｇｇｕａｎ）Ｃｏｍｐａｎｙ Ｌｔｄ
A63: DG10500051 | B63: Ｓｈａｎｇｈａｉ Ｈｕｉｍｅｉ Ｃｏｓｍｅｔｉｃｓ Ｃｏ．，Ｌｔｄ
A64: DG10500052 | B64: 中山市金鳥化工有限公司
A65: DG10500054 | B65: Ｉｎｔｅｒｃｏｓ Ｃｏｓｍｅｔｉｃｓ （Ｓｕｚｈｏｕ） Ｃｏ． Ｌｔｄ．
A66: DG10500055 | B66: Ｎａｎｔｏｎｇ Ｈｅａｌｔｈ ＆ Ｂｅｙｏｎｄ Ｈｙｇｉｅｎｉｃ Ｐｒｏｄｕｃｔｓ Ｉｎｃ．
A67: DG10500056 | B67: Ｓｈａｎｇｈａｉ Ｓｈｅｎｇｎｏｎｇ Ｐｅｓｔｉｃｉｄｅ Ｃｏ．，Ｌｔｄ
A68: DG10500057 | B68: Ｒｅｃｋｉｔｔ Ｂｅｎｃｋｉｓｅｒ Ｈｏｕｓｅｈｏｌｄ Ｐｒｏｄｕｃｔｓ（Ｃｈｉｎａ）Ｃｏ．，Ｌｔｄ．
A69: DG10500058 | B69: ＳＨＡＮＧＨＡＩ ＫＡＮＥＢＯ ＣＯＳＭＥＴＩＣＳ Ｃｏ．， Ｌｔｄ．
A70: DG10500059 | B70: 蘇州中化薬品工業有限公司 永安工場
A71: DG10500060 | B71: Ｗｉｎｎｅｒ Ｍｅｄｉｃａｌ （Ｊｉａｙｕ） Ｃｏ．，Ｌｔｄ．
A72: DG10500060 | B72: Ｗｉｎｎｅｒ Ｍｅｄｉｃａｌ （Ｊｉａｙｕ） Ｃｏ．，Ｌｔｄ．
A73: DG10500061 | B73: ＡＭＯ（Ｈａｎｇｚｈｏｕ）Ｃｏ．，Ｌｔｄ．Ｗａｒｅｈｏｕｓｅ ２
A74: DG10500062 | B74: Ｓｈａｎｇｈａｉ Ｌｖｚｅ Ｃｏ．，Ｌｔｄ．
A75: DG10500063 | B75: Ｂｅｙｏｎｄ Ｔｅｃｈｎｏｌｏｇｙ Ｃｏｒｐ． Ｎａｎｃｈａｎｇ
A76: DG10500064 | B76: Ｕｎｉｃｈａｒｍ Ｃｏｎｓｕｍｅｒ Ｐｒｏｄｕｃｔｓ（Ｊｉａｎｇ Ｓｕ）Ｃｏ．ＬＴＤ
A77: DG10500065 | B77: ＣＯＳＭＯ ＢＥＡＵＴＹ ＣＯＳＭＥＴＩＣＳ（ＮＡＮＴＯＮＧ）ＣＯ．，ＬＴＤ．
A78: DG10500066 | B78: 東莞市東和日化用品有限公司
A79: DG10500067 | B79: ＰＡＲＦＵＭＳ ＣＨＲＩＳＴＩＡＮ ＤＩＯＲ （ＣＨＩＮＡ）ＣＯ．，ＬＴＤ．
A80: DG10500068 | B80: ＳＨＥＮＺＨＥＮ ＴＩＡＮ ＨＥ ＹＵＡＮ ＥＮＴＥＲＰＲＩＳＥ ＬＴＤ．
A81: DG10500069 | B81: Ｓｈａｎｇｈａｉ ＣＡＬ（Ｑｉｄｏｎｇ）Ｄａｉｌｙ Ｃｈｅｍｉｃａｌ Ｃｏ．，Ｌｔｄ．
A82: DG10500070 | B82: 寧波櫻花炭語日化用品有限公司洪塘工場
A83: DG10500071 | B83: 上海滬匯日用化学品有限公司
A84: DG10500072 | B84: Ｓｈａｎｄｏｎｇ Ｉｎｓｅｃｔ Ｓｈｉｅｌｄ Ａｐｐａｒｅｌ Ｔｒｅａｔｍｅｎｔ Ｔｅｃｈｎｏｌｏｇｙ Ｃｏ．Ｌｔｄ．
A85: DG10500073 | B85: Ｓｈａｎｇｈａｉ Ｚｏｔｏｓ Ｃｉｔｉｃ Ｃｏｓｍｅｔｉｃｓ Ｃｏ．，Ｌｔｄ．
A86: DG10500074 | B86: 獅王日用化工（青島）有限公司
A87: DG10500075 | B87: ＪＯＨＮＳＯＮ ＆ ＪＯＨＮＳＯＮ ＣＨＩＮＡ ＬＴＤ．
A88: DG10500076 | B88: ＧＵＡＮＧＺＨＯＵ ＥＹＥ ＳＷＥＥＴ ＣＯ．， ＬＴＤ
A89: DG10500077 | B89: Ｌｉａｎｙｕｎｇａｎｇ Ｐａｎｇｕ Ｃｈｅｍｉｃａｌ Ｃｏ Ｌｔｄ．
A90: DG10600002 | B90: Ｋａｎｇ Ｎａ Ｈｓｉｕｎｇ Ｅｎｔｅｒｐｒｉｓｅ Ｃｏ．， Ｌｔｄ．
A91: DG10600005 | B91: 佐藤製藥股<hka>ふん</hka>有限公司 新竹廠
A92: DG10600010 | B92: 威瑪精密化學科技股<hka>ふぇん</hka>有限公司
A93: DG10600012 | B93: Ａ Ｍｅｇａ Ｉｎｔｅｒｎａｔｉｏｎａｌ Ｃｏ．，Ｌｔｄ．
A94: DG10600013 | B94: Ｙｕｎｇ Ｓｈｅｎｇ Ｏｐｔｉｃａｌ Ｃｏ．， Ｌｔｄ．
A95: DG10600014 | B95: ＴＡＩＷＡＮ ＫＯＳＥ ＣＯ．，ＬＴＤ． ＨＳＩＮ－ＣＨＵ ＦＡＣＴＯＲＹ
A96: DG10600015 | B96: ＴＡＩＷＡＮ ＳＨＩＳＥＩＤＯ ＣＯ．，ＬＴＤ．ＨＳＩＮＣＨＵ ＦＡＣＴＯＲＹ
A97: DG10600016 | B97: Ｙｕｎｇ Ｓｈｅｎｇ Ｏｐｔｉｃａｌ Ｃｏ．， Ｌｔｄ．
A98: DG11000002 | B98: Ｐｒｏｃｔｅｒ ＆ Ｇａｍｂｌｅ Ｉｎｄｏｃｈｉｎａ Ｌｔｄ．
A99: DG11000005 | B99: ｖｉｎａ ｃｏｓｍｏ Ｃｏ．，Ｌｔｄ．
A100: DG11000006 | B100: Ｓｈｉｓｅｉｄｏ Ｖｉｅｔｎａｍ， Ｉｎｃ．
A101: DG11000007 | B101: Ｆｕｍａｋｉｌｌａ Ｖｉｅｔｎａｍ Ｐｔｅ Ｌｔｄ
A102: DG11000008 | B102: ＫＡＯ ＶＩＥＴＮＡＭ ＣＯ．， ＬＴＤ． ＢＩＥＮ ＨＯＡ ＦＡＣＴＯＲＹ
A103: DG11000009 | B103: ＲＯＨＴＯ－ＭＥＮＴＨＯＬＡＴＵＭ（ＶＩＥＴＮＡＭ）ＣＯ．，ＬＴＤ
A104: DG11000010 | B104: ＶＩＮＡ ＣＯＳＭＯ ＣＯ．，ＬＴＤ． ２
A105: DG11000011 | B105: ＮＡＲＩＳ ＣＯＳＭＥＴＩＣＳ ＶＩＥＴＮＡＭ ＣＯ．，ＬＴＤ．
A106: DG11000012 | B106: ＶＩＮＡ ＣＯＳＭＯ ＣＯ．，ＬＴＤ． ３
A107: DG11100002 | B107: ＰＩＣＡＳＯ ＮＡＴＵＲＡＬＳ ＬＡＢＯＲＡＴＯＲＹ ＣＯ．， ＬＴＤ．
A108: DG11100003 | B108: ＹＡＭＡＨＡＴＳＵ （ＴＨＡＩＬＡＮＤ） ＣＯ．，ＬＴＤ．
A109: DG11100004 | B109: ＩＮＴＥＲＮＡＴＩＯＮＡＬ ＬＡＢＯＲＡＴＯＲＩＥＳ ＣＯＲＰ．，ＬＴＤ．
A110: DG11100005 | B110: アース（タイランド）株式会社 工場
A111: DG11100005 | B111: アース（タイランド）株式会社 工場
A112: DG11100007 | B112: ＳＡＲＡＹＡ ＭＦＧ．（ＴＨＡＩＬＡＮＤ）ＣＯ．，ＬＴＤ．
A113: DG11100008 | B113: ＴＨＡＩ ＤＡＩＺＯ ＡＥＲＯＳＯＬ ＣＯ．，ＬＴＤ．ＴＨＡＩＬＡＮＤ ＦＡＣＴＯＲＹ
A114: DG11100010 | B114: Ｊｏｈｎｓｏｎ ＆ Ｊｏｈｎｓｏｎ （Ｔｈａｉｌａｎｄ） Ｌｉｍｉｔｅｄ
A115: DG11100011 | B115: ＬＦ Ｂｅａｕｔｙ （Ｔｈａｉｌａｎｄ）， ＬＴＤ．
A116: DG11100012 | B116: ＱＵＡＬＩＴＹ ＣＯＩＬＳ ＩＮＤＵＳＴＲＩＥＳ（Ｐ．Ｂ．）株式会社
A117: DG11100013 | B117: ｃｏｌｇａｔｅ－ｐａｌｍｏｌｉｖｅ（ｔｈａｉｌａｎｄ）ＬＴＤ．
A118: DG11100014 | B118: ＰＩＣＡＳＯ ＮＡＴＵＲＡＬＳ ＬＡＢＯＲＡＴＯＲＹ ＣＯＳＭＥ ＰＡＲＫ ＢＡＮＧＫＯＫ
A119: DG11100015 | B119: ＭＩＬＯＴＴ ＬＡＢＯＲＡＴＯＲＩＥＳ ＣＯ．，ＬＴＤ．
A120: DG11100016 | B120: Ｐｒｏｃｔｅｒ ＆ Ｇａｍｂｌｅ Ｍａｎｕｆａｃｔｕｒｉｎｇ （Ｔｈａｉｌａｎｄ） Ｌｔｄ．
A121: DG11100018 | B121: ＬＩＯＮ ＣＯＲＰＯＲＡＴＩＯＮ（ＴＨＡＩＬＡＮＤ）ＬＴＤ．Ｓｒｉｒａｃｈａ Ｆａｃｔｏｒｙ
A122: DG11100019 | B122: ＴＯＹＯ ＦＩＬＬＩＮＧ ＩＮＴＥＲＮＡＴＩＯＮＡＬ ＣＯ．，ＬＴＤ
A123: DG11100021 | B123: Ｗｅｌｌａ （Ｔｈａｉｌａｎｄ） Ｃｏ．， Ｌｔｄ．
A124: DG11100022 | B124: ＹＡＭＡＨＡＴＳＵ（ＴＨＡＩＬＡＮＤ）ＣＯ．，ＬＴＤ．
A125: DG11100023 | B125: Ｒｅｃｋｉｔｔ Ｂｅｎｃｋｉｓｅｒ Ｈｅａｌｔｈｃａｒｅ Ｍａｎｕｆａｃｔｕｒｉｎｇ（Ｔｈａｉｌａｎｄ）Ｌｔｄ．
A126: DG11100024 | B126: Ｋａｏ Ｉｎｄｕｓｔｒｉａｌ（Ｔｈａｉｌａｎｄ）Ｃｏ．，Ｌｔｄ．
A127: DG11100025 | B127: Ｈｏｙｕ Ｃｏｓｍｅｔｉｃｓ （Ｔｈａｉｌａｎｄ） Ｃｏ．，Ｌｔｄ．
A128: DG11100026 | B128: アース（タイランド）株式会社 ＭＣ工場
A129: DG11100027 | B129: ＣＯＣＫＳＥＣ ＣＨＥＭＩＣＡＬ ＩＮＤＵＳＴＲＹ ＣＯ．，ＬＴＤ
A130: DG11100028 | B130: Ｓ＆Ｊ ＩＮＴＥＲＮＡＴＩＯＮＡＬ ＥＮＴＥＲＰＲＩＳＥＳ ＰＵＢＬＩＣ ＣＯＭＰＡＮＹ ＬＩＭＩＴＥＤ
A131: DG11100029 | B131: Ｕｎｉ－Ｃｈａｒｍ （Ｔｈａｉｌａｎｄ） Ｃｏ．， Ｌｔｄ．
A132: DG11100030 | B132: Ｆｕｍａｋｉｌｌａ（Ｔｈａｉｌａｎｄ）Ｌｔｄ
A133: DG11100031 | B133: ＳＡＴＨＡＰＯＲＮ ＭＡＲＫＥＴＩＮＧ Ｃｏ．， Ｌｔｄ．
A134: DG11100032 | B134: ＰＥＲＦＥＣＴ ＬＩＮＥ ＩＮＴＥＲＮＡＴＩＯＮＡＬ ＣＯ．，ＬＴＤ．
A135: DG11100033 | B135: アースケミカル（タイランド）株式会社 第３工場
A136: DG11100034 | B136: ＭＩＬＢＯＮ（ＴＨＡＩＬＡＮＤ）ＣＯ．，ＬＴＤ．
A137: DG11100035 | B137: ＣＯＣＫＳＥＣ ＣＨＥＭＩＣＡＬ ＩＮＤＵＳＴＲＹ ＣＯ．，ＬＴＤ．
A138: DG11100036 | B138: ＨＦＣ Ｐｒｅｓｔｉｇｅ Ｍａｎｕｆａｃｔｕｒｉｎｇ （Ｔｈａｉｌａｎｄ） Ｌｔｄ．
A139: DG11100037 | B139: ＰＩＣＡＳＯ ＮＡＴＵＲＡＬＳ ＬＡＢＯＲＡＴＯＲＹ ＣＯＳＭＥ ＰＡＲＫ ＢＡＮＧＫＯＫ Ⅱ
A140: DG11200001 | B140: ＯＰＴＯ－ＰＨＡＲＭ ＰＴＥ ＬＴＤ
A141: DG11300001 | B141: Ｑｕａｌｉｔｙ Ｃｏｉｌｓ Ｉｎｄｕｓｔｒｉｅｓ株式会社
A142: DG11300005 | B142: ＭＡＳＥ ＩＮＤＵＳＴＲＩＥＳ ＳＤＮ． ＢＨＤ．
A143: DG11300007 | B143: Ｐａｏｓ Ｉｎｄｕｓｔｒｉｅｓ Ｓｄｎ．Ｂｈｄ．
A144: DG11300008 | B144: Ｆｕｍａｋｉｌｌａ Ｍａｌａｙｓｉａ Ｂｅｒｈａｄ
A145: DG11300010 | B145: ＮＩＰＰＯＮ ＭＥＮＡＲＤ （Ｍ） ＳＤＮ． ＢＨＤ．
A146: DG11300011 | B146: Ｒｉｓｏ Ｓｅｋｋｅｎ Ｓｄｎ Ｂｈｄ
A147: DG11700001 | B147: ＡＲＩＥ ＣＥＢＵ ＣＯＳＭＥＴＩＣ ＣＯＲＰＯＲＡＴＩＯＮ
A148: DG11700002 | B148: Ｂｏｄｙ Ｌｉｇｈｔ Ｄｉｍｅｎｓｉｏｎ Ｗｏｒｌｄ Ｃｏｒｐｏｒａｔｉｏｎ
A149: DG11700003 | B149: ＡＳＯ ＰＨＩＬＩＰＰＩＮＥＳ， ＩＮＣ．
A150: DG11800005 | B150: ＰＴ．ＯＳＡＫＩ ＭＥＤＩＣＡＬ ＩＮＤＯＮＥＳＩＡ
A151: DG11800005 | B151: ＰＴ．ＯＳＡＫＩ ＭＥＤＩＣＡＬ ＩＮＤＯＮＥＳＩＡ
A152: DG11800006 | B152: ピーティー フマキラーインドネシア タンゲランファクトリー
A153: DG11800007 | B153: ＰＴ．ＦＵＭＡＫＩＬＬＡ ＮＯＭＯＳ
A154: DG11800008 | B154: ＰＴ．ＦＵＭＡＫＩＬＬＡ ＩＮＤＯＮＥＳＩＡ Ｋａｒａｗａｎｇ Ｆａｃｔｏｒｙ
A155: DG11800009 | B155: ＰＴ．ＯＳＩＭＯ ＩＮＤＯＮＥＳＩＡ
A156: DG11800010 | B156: ＰＴ ＭＡＮＤＯＭ ＩＮＤＯＮＥＳＩＡ ＴＢＫ ＣＩＢＩＴＵＮＧ ＣＯＳＭＥＴＩＣ ＦＡＣＴＯＲＹ
A157: DG12300002 | B157: ＳＳＬ－ＴＴＫ Ｌｉｍｉｔｅｄ
A158: DG12300003 | B158: Ｐｉｒａｍａｌ Ｅｎｔｅｒｐｒｉｓｅｓ Ｌｉｍｉｔｅｄ
A159: DG12300004 | B159: Ｍａｋｓｏｎ Ｉｎｄｕｓｔｒｉｅｓ Ｐｒｉｖａｔｅ Ｌｉｍｉｔｅｄ
A160: DG12300005 | B160: ＤＩＳＨＭＡＮ ＣＡＲＢＯＧＥＮ ＡＭＣＩＳ ＬＩＭＩＴＥＤ
A161: DG12300007 | B161: ＣＲＥＡＴＩＶＥ ＲＥＳＥＡＲＣＨ ＬＡＢＳ ＰＶＴ．ＬＴＤ．
A162: DG12300008 | B162: Ｍａｄａｕｓ Ｐｈａｒｍａｃｅｕｔｉｃａｌｓ Ｐｒｉｖａｔｅ Ｌｉｍｉｔｅｄ
A163: DG12300010 | B163: Ｓｙｎｅｒｇｉａ Ｓｃｉｅｎｃｅ Ｐｖｔ． Ｌｔｄ．
A164: DG12300011 | B164: Ａｌｋｙｌ Ａｍｉｎｅｓ Ｃｈｅｍｉｃａｌｓ Ｌｔｄ．
A165: DG14300001 | B165: ＨＬＡＶＩＮ ＩＮＤＵＳＴＲＩＥＳ ＬＴＤ．
A166: DG14300004 | B166: Ｃｈｉｃ Ｃｏｓｍｅｔｉｃ Ｉｎｄｕｓｔｒｉｅｓ １９８９ Ｌｔｄ．
A167: DG20300002 | B167: Ｋｒｏｎｏｓｅｐｔ ＡＢ
A168: DG20400003 | B168: Ｃｏｌｏｐｌａｓｔ Ａ／Ｓ
A169: DG20400004 | B169: Ｒｉｅｍａｎｎ Ａ／Ｓ
A170: DG20500002 | B170: Ｗｈｉｔｍａｎ Ｌａｂｏｒａｔｏｒｉｅｓ Ｌｉｍｉｔｅｄ
A171: DG20500006 | B171: ＡＤＶＡＮＣＥＤ ＨＥＡＬＴＨＣＡＲＥ ＬＴＤ．
A172: DG20800001 | B172: ＥＳＴＥＥ ＬＡＵＤＥＲ Ｎ．Ｖ．
A173: DG21000001 | B173: ＳＩＣＡＦ ＰＡＲＩＳ
A174: DG21000003 | B174: ＳＩＣＯＳ ｅｔ Ｃｉｅ
A175: DG21000004 | B175: ＣＡＰ Ｅｔａｂｌｉｓｓｅｍｅｎｔ ｄｅ Ｖｉｃｈｙ
A176: DG21000010 | B176: ＰＡＲＦＵＭＳ ＣＨＲＩＳＴＩＡＮ ＤＩＯＲ Ｓ．Ａ．
A177: DG21000011 | B177: ＬＶＭＨ ＦＲＡＧＲＡＮＣＥ ＢＲＡＮＤＳ
A178: DG21000013 | B178: Ｕｎｉｔｅ ｄｅ ｐｒｏｄｕｃｔｉｏｎ ＡＶＥＮＥ
A179: DG21000014 | B179: Ｓｏｃｏｐｌａｎ
A180: DG21000015 | B180: ＣＨＡＮＥＬ ＰＡＲＦＵＭＳ ＢＥＡＵＴＥ
A181: DG21000017 | B181: ＦＡＣＯＳＰＡＲ
A182: DG21000018 | B182: Ｓｏｃｉｅ（’）ｔｅ（’） ＯＮＤＡＬ ＦＲＡＮＣＥ ＳＡＲＬ
A183: DG21000019 | B183: ＬＡＢＯＲＡＴＯＩＲＥＳ ＣＬＡＲＩＮＳ
A184: DG21000020 | B184: ＲＥＣＫＩＴＴ ＢＥＮＣＫＩＳＥＲ， ＣＨＡＲＴＲＥＳ ＦＡＣＴＯＲＹ
A185: DG21000022 | B185: ＴＨＥＰＥＮＩＥＲ ＰＨＡＲＭＡ ＆ ＣＯＳＭＥＴＩＣＳ Ｓ．Ａ．Ｓ．
A186: DG21000024 | B186: ＩＮＴＥＲＳＰＲＡＹ
A187: DG21000028 | B187: ＦＡＲＥＶＡＢＩＯ
A188: DG21000029 | B188: ＬＡＢＯＲＡＴＯＩＲＥＳ Ｍ＆Ｌ－Ｍｅｌｖｉｔａ
A189: DG21000030 | B189: ＬＡＢＯＲＡＴＯＩＲＥＳ Ｍ＆Ｌ－Ｌ’ＯＣＣＩＴＡＮＥ
A190: DG21000031 | B190: ＬＣＥｓａ
A191: DG21000032 | B191: ＧＵＥＲＬＡＩＮ
A192: DG21000033 | B192: Ｂａｙｅｒ Ｓ．Ａ．Ｓ．‐Ｓｉｔｅ ｄｅ Ｍａｒｌｅ
A193: DG21000034 | B193: ＭＵＬＴＡＬＥＲ ＥＴ ＣＩＥ ＳＡＳ
A194: DG21000035 | B194: Ｌａｂｏｒａｔｏｉｒｅ Ｓｙｍｂｉｏｓｅ Ｃｏｓｍｅｔｉｑｕｅ ＳＡ
A195: DG21300002 | B195: Ｋｅｍａｔｅｎ Ｃｏｓｍｅｔｉｃｓ Ｄｅｕｔｓｃｈｌａｎｄ ＧｍｂＨ Ｗｅｒｋ Ｌｅｎｚｋｉｒｃｈ
A196: DG21300003 | B196: Ｓｃｈｗａｒｚｋｏｐｆ ＆ Ｈｅｎｋｅｌ Ｐｒｏｄｕｃｔｉｏｎ Ｅｕｒｏｐｅ ＧｍｂＨ ＆ Ｃｏ．ＫＧ
A197: DG21300006 | B197: Ｐｒｏｄｕｉｔｓ ｄｅ Ｂｅａｕｔｅ（´） Ｐｒｏｄｕｋｔｉｏｎｓ ＧｍｂＨ
A198: DG21300008 | B198: Ｓｚａｉｄｅｌ Ｃｏｓｍｅｔｉｃ ＧｍｂＨ
A199: DG21300009 | B199: Ｋｎｅｉｐｐ－Ｗｅｒｋｅ Ｋｎｅｉｐｐ－Ｍｉｔｔｅｌ－Ｚｅｎｔｒａｌｅ ＧｍｂＨ ＆ Ｃｏ．ＫＧ
A200: DG21300010 | B200: Ｐｒｏｃｔｅｒ ＆ Ｇａｍｂｌｅ Ｍａｎｕｆａｃｔｕｒｉｎｇ ＧｍｂＨ， Ｗｅｒｋ Ｈｕ（¨）ｎｆｅｌｄ
... 65 more rows
